fUSD/lending_fUSD_20240720
["ID","MTS","AMOUNT","RATE_DAILY","PERIOD"]
[332699547,1721454660974,-500.0,0.0003315,14]
[332699548,1721454660984,-769.28,0.0003315,14]
[332699549,1721454660994,-562.04,0.0003315,14]
[332699550,1721454661004,-500.0,0.0003315,14]
[332699551,1721454661014,-500.0,0.0003315,14]
[332699552,1721454661024,-1079.35,0.0003315,14]
[332699553,1721454661034,-710.01,0.0003315,14]
[332699554,1721454661043,-500.0,0.0003315,14]
[332699555,1721454661053,-500.0,0.0003315,14]
[332699556,1721454661063,-1222.45,0.0003315,14]
[332699557,1721454661073,-500.0,0.0003315,14]
[332699558,1721454661083,-1172.59,0.0003315,14]
[332699559,1721454661094,-500.0,0.0003315,14]
[332699560,1721454661104,-507.21068921,0.0003315,14]
[332699561,1721454661114,-500.0,0.0003315,14]
[332699562,1721454661123,-579.49,0.0003315,14]
[332699563,1721454661133,-502.34473742,0.0003315,14]
[332699564,1721454661143,-500.0,0.0003315,14]
[332699565,1721454661154,-1056.79,0.0003315,14]
[332699566,1721454661163,-500.0,0.0003315,14]
[332699567,1721454661173,-807.94,0.0003315,14]
[332699568,1721454661183,-559.19152003,0.0003315,14]
[332699569,1721454661193,-500.0,0.0003315,14]
[332699570,1721454661203,-501.1647321,0.0003315,14]
[332699571,1721454661212,-1358.25,0.0003315,14]
[332699572,1721454661222,-500.76831195,0.0003315,14]
[332699573,1721454661231,-500.0,0.0003315,14]
[332699574,1721454661241,-500.0,0.0003315,14]
[332699575,1721454661251,-500.0,0.0003315,14]
[332699576,1721454661260,-1130.8,0.0003315,14]
[332699577,1721454661270,-501.28521237,0.0003315,14]
[332699578,1721454661279,-870.92,0.0003315,14]
[332699579,1721454661289,-500.0,0.0003315,14]
[332699580,1721454661298,-501.72133898,0.0003315,14]
[332699581,1721454661308,-500.0,0.0003315,14]
[332699582,1721454661322,-500.0,0.0003315,14]
[332699583,1721454661331,-500.0,0.0003315,14]
[332699584,1721454661342,-500.95062279,0.0003315,14]
[332699585,1721454661351,-500.0,0.0003315,14]
[332699586,1721454661362,-500.0,0.0003315,14]
[332699587,1721454661371,-500.0,0.0003315,14]
[332699588,1721454661381,-500.0,0.0003315,14]
[332699589,1721454661391,-500.0,0.0003315,14]
[332699590,1721454661401,-969.05,0.0003315,14]
[332699591,1721454661413,-500.0,0.0003315,14]
[332699592,1721454661424,-761.91,0.0003315,14]
[332699593,1721454661434,-500.0,0.0003315,14]
[332699594,1721454661444,-642.69,0.0003315,14]
[332699595,1721454661454,-893.09,0.0003315,14]
[332699596,1721454661464,-500.0,0.0003315,14]
[332699597,1721454661475,-597.63,0.0003315,14]
[332699598,1721454661487,-500.0,0.0003315,14]
[332699599,1721454661496,-598.13,0.0003315,14]
[332699600,1721454661506,-500.0,0.0003315,14]
[332699601,1721454661516,-972.69,0.0003315,14]
[332699602,1721454661526,-500.0,0.0003315,14]
[332699603,1721454661535,-1697.94,0.0003315,14]
[332699604,1721454661545,-500.0,0.0003315,14]
[332699605,1721454661555,-500.0,0.0003315,14]
[332699606,1721454661565,-500.0,0.0003315,14]
[332699607,1721454661575,-500.0,0.0003315,14]
[332699608,1721454661584,-500.0,0.0003315,14]
[332699609,1721454661595,-1191.04,0.0003315,14]
[332699610,1721454661605,-500.0,0.0003315,14]
[332699611,1721454661614,-500.0,0.0003315,14]
[332699612,1721454661699,-500.0,0.0003315,14]
[332699613,1721454661709,-502.32,0.0003315,14]
[332699614,1721454661718,-500.0,0.0003315,14]
[332699615,1721454661728,-500.0,0.0003315,14]
[332699616,1721454661737,-500.0,0.0003315,14]
[332699617,1721454661746,-627.33,0.0003315,14]
[332699618,1721454661756,-500.0,0.0003315,14]
[332699619,1721454661765,-500.0,0.0003315,14]
[332699620,1721454661775,-500.0,0.0003315,14]
[332699621,1721454661784,-501.11570959,0.0003315,14]
[332699622,1721454661793,-1434.76,0.0003315,14]
[332699623,1721454661803,-500.0,0.0003315,14]
[332699624,1721454661812,-685.1,0.0003315,14]
[332699625,1721454661822,-500.0,0.0003315,14]
[332699626,1721454661831,-500.0,0.0003315,14]
[332699627,1721454661842,-501.58120815,0.0003315,7]
[332699628,1721454661852,-500.0,0.0003315,14]
[332699629,1721454661861,-495.72229993,0.0003315,14]
[332699630,1721454661870,-689.63,0.0003315,14]
[332699631,1721454661880,-518.35,0.0003315,14]
[332699632,1721454661890,-503.89267748,0.0003315,14]
[332699633,1721454661900,-690.62,0.0003315,14]
[332699634,1721454661909,-500.0,0.0003315,14]
[332699635,1721454661919,-1590.11,0.0003315,14]
[332699636,1721454661928,-500.0,0.0003315,14]
[332699637,1721454661937,-763.13,0.0003315,14]
[332699638,1721454661947,-503.49574192,0.0003315,14]
[332699639,1721454661956,-559.09,0.0003315,14]
[332699640,1721454661966,-662.09,0.0003315,14]
[332699641,1721454661976,-500.0,0.0003315,14]
[332699642,1721454661987,-844.23,0.0003315,14]
[332699643,1721454661996,-502.47969564,0.0003315,14]
[332699644,1721454662006,-531.67,0.0003315,14]
[332699645,1721454662015,-503.0411811,0.0003315,14]
[332699646,1721454662024,-914.64,0.0003315,14]
[332699647,1721454662033,-504.75291932,0.0003315,14]
[332699648,1721454662043,-500.0,0.0003315,14]
[332699649,1721454662052,-500.0,0.0003315,14]
[332699650,1721454662062,-647.26,0.0003315,14]
[332699651,1721454662071,-419.84458077,0.0003315,14]
[332699652,1721454662081,-1027.47,0.0003315,14]
[332699653,1721454662091,-600.45,0.0003315,14]
[332699654,1721454662100,-500.0,0.0003315,14]
[332699655,1721454662109,-500.0,0.0003315,14]
[332699656,1721454662119,-613.0,0.0003315,14]
[332699657,1721454662129,-656.88,0.0003315,14]
[332699658,1721454662138,-633.44,0.0003315,14]
[332699659,1721454662148,-500.0,0.0003315,14]
[332699660,1721454662157,-334.57517253,0.0003315,14]
[332699661,1721454662166,-1000.0,0.0003315,14]
[332699662,1721454662175,-1003.56,0.0003315,14]
[332699663,1721454662185,-521.29,0.0003315,14]
[332699664,1721454662194,-1014.61,0.0003315,14]
[332699665,1721454662203,-529.7237024,0.0003315,14]
[332699666,1721454662213,-500.0,0.0003315,14]
[332699667,1721454662222,-500.0,0.0003315,14]
[332699668,1721454662231,-500.0,0.0003315,14]
[332699669,1721454662240,-500.0,0.0003315,14]
[332699670,1721454662250,-749.61,0.0003315,14]
[332699671,1721454662259,-438.30634528,0.0003315,14]
[332699672,1721454662268,-500.0,0.0003315,14]
[332699673,1721454662277,-1820.15,0.0003315,14]
[332699674,1721454662287,-500.0,0.0003315,14]
[332699675,1721454662296,-1418.41,0.0003315,14]
[332699676,1721454662306,-500.0,0.0003315,14]
[332699677,1721454662316,-521.44,0.0003315,14]
[332699678,1721454662326,-1558.75,0.0003315,14]
[332699679,1721454662336,-682.47,0.0003315,14]
[332699680,1721454662345,-500.0,0.0003315,14]
[332699681,1721454662355,-500.0,0.0003315,14]
[332699682,1721454662366,-500.0,0.0003315,14]
[332699683,1721454662376,-500.0,0.0003315,14]
[332699684,1721454662385,-1023.25,0.0003315,14]
[332699685,1721454662396,-814.54,0.0003315,14]
[332699686,1721454662406,-500.0,0.0003315,14]
[332699687,1721454662416,-500.0,0.0003315,14]
[332699688,1721454662425,-1286.8,0.0003315,14]
[332699689,1721454662434,-500.0,0.0003315,14]
[332699690,1721454662444,-817.73,0.0003315,2]
[332699691,1721454662453,-1224.39,0.0003315,14]
[332699692,1721454662463,-500.0,0.0003315,14]
[332699693,1721454662473,-502.87257138,0.0003315,14]
[332699694,1721454662483,-504.89464317,0.0003315,14]
[332699695,1721454662492,-502.48043703,0.0003315,14]
[332699696,1721454662501,-500.0,0.0003315,14]
[332699697,1721454662511,-505.60297679,0.0003315,14]
[332699698,1721454662520,-500.0,0.0003315,14]
[332699699,1721454662530,-796.27,0.0003315,14]
[332699700,1721454662540,-946.86,0.0003315,14]
[332699701,1721454662549,-901.79,0.0003315,14]
[332699702,1721454662558,-569.28,0.0003315,14]
[332699703,1721454662568,-488.23115946,0.0003315,14]
[332699704,1721454662577,-500.0,0.0003315,14]
[332699705,1721454662587,-500.0,0.0003315,14]
[332699706,1721454662596,-500.0,0.0003315,14]
[332699707,1721454662605,-220.26609628,0.0003315,14]
[332699708,1721454662615,-500.0,0.0003315,14]
[332699709,1721454662624,-500.0,0.0003315,14]
[332699710,1721454662633,-940.39,0.0003315,14]
[332699711,1721454662643,-504.19497024,0.0003315,14]
[332699712,1721454662652,-749.26,0.0003315,14]
[332699713,1721454662662,-674.35,0.0003315,14]
[332699714,1721454662671,-500.0,0.0003315,14]
[332699715,1721454662680,-831.76,0.0003315,14]
[332699716,1721454662690,-749.98,0.0003315,14]
[332699717,1721454662700,-567.45983034,0.0003315,14]
[332699718,1721454662709,-1280.8,0.0003315,14]
[332699719,1721454662720,-500.0,0.0003315,14]
[332699720,1721454662730,-501.90936657,0.0003315,14]
[332699721,1721454662739,-1086.68,0.0003315,14]
[332699722,1721454662749,-1680.75,0.0003315,14]
[332699723,1721454662759,-504.7674109,0.0003315,14]
[332699724,1721454662768,-500.0,0.0003315,14]
[332699725,1721454662777,-503.74091912,0.0003315,14]
[332699726,1721454662787,-500.0,0.0003315,14]
[332699727,1721454662797,-500.0,0.0003315,14]
[332699728,1721454662806,-500.63519394,0.0003315,14]
[332699729,1721454662816,-168.16281297,0.0003315,14]
[332699730,1721454662826,-773.69,0.0003315,14]
[332699731,1721454662835,-990.69,0.0003315,14]
[332699732,1721454662846,-500.0,0.0003315,14]
[332699733,1721454662855,-500.0,0.0003315,14]
[332699734,1721454662865,-598.66,0.0003315,14]
[332699735,1721454662875,-625.76,0.0003315,14]
[332699736,1721454662884,-500.0,0.0003315,14]
[332699737,1721454662894,-964.11,0.0003315,14]
[332699738,1721454662904,-502.53724075,0.0003315,14]
[332699739,1721454662914,-500.0,0.0003315,14]
[332699740,1721454662924,-798.13,0.0003315,14]
[332699741,1721454662933,-506.18397632,0.0003315,14]
[332699742,1721454662944,-500.0,0.0003315,14]
[332699743,1721454662952,-679.12,0.0003315,14]
[332699744,1721454662962,-500.0,0.0003315,14]
[332699745,1721454662974,-1219.46,0.0003315,14]
[332699746,1721454662984,-503.46063989,0.0003315,14]
[332699747,1721454662996,-500.0,0.0003315,14]
[332699748,1721454663006,-502.27913108,0.0003315,14]
[332699749,1721454663016,-500.0,0.0003315,14]
[332699750,1721454663027,-500.0,0.0003315,14]
[332699751,1721454663038,-968.81,0.0003315,14]
[332699752,1721454663048,-500.0,0.0003315,14]
[332699753,1721454663060,-1098.81,0.0003315,14]
[332699754,1721454663069,-500.0,0.0003315,14]
[332699755,1721454663080,-1573.39,0.0003315,14]
[332699756,1721454663091,-500.0,0.0003315,14]
[332699757,1721454663101,-736.88,0.0003315,14]
[332699758,1721454663111,-503.73,0.0003315,14]
[332699759,1721454663121,-506.83865184,0.0003315,14]
[332699760,1721454663133,-500.0,0.0003315,14]
[332699761,1721454663143,-625.9,0.0003315,14]
[332699762,1721454663153,-504.1092922,0.0003315,14]
[332699763,1721454663163,-955.41,0.0003315,14]
[332699764,1721454663174,-998.25,0.0003315,14]
[332699765,1721454663190,-501.86409145,0.0003315,14]
[332699766,1721454663201,-557.41,0.0003315,14]
[332699767,1721454663211,-630.52,0.0003315,14]
[332699768,1721454663220,-500.0,0.0003315,14]
[332699769,1721454663230,-500.0,0.0003315,14]
[332699770,1721454663239,-1514.94,0.0003315,14]
[332699771,1721454663249,-765.78,0.0003315,14]
[332699772,1721454663258,-500.0,0.0003315,14]
[332699773,1721454663268,-500.0,0.0003315,14]
[332699774,1721454663277,-1959.07,0.0003315,14]
[332699775,1721454663287,-893.73,0.0003315,14]
[332699776,1721454663297,-1268.47,0.0003315,14]
[332699777,1721454663307,-731.02,0.0003315,14]
[332699778,1721454663319,-628.62,0.0003315,14]
[332699779,1721454663329,-707.75,0.0003315,14]
[332699780,1721454663342,-1899.18,0.0003315,14]
[332699781,1721454663352,-500.0,0.0003315,14]
[332699782,1721454663362,-749.43,0.0003315,14]
[332699783,1721454663372,-500.0,0.0003315,14]
[332699784,1721454663382,-206.83723812,0.0003315,14]
[332699785,1721454663392,-517.38,0.0003315,14]
[332699786,1721454663402,-1268.18,0.0003315,14]
[332699787,1721454663411,-506.88620305,0.0003315,14]
[332699788,1721454663421,-500.0,0.0003315,14]
[332699789,1721454663431,-712.94,0.0003315,14]
[332699790,1721454663440,-858.57,0.0003315,14]
[332699791,1721454663451,-500.0,0.0003315,14]
[332699792,1721454663460,-1539.07,0.0003315,14]
[332699793,1721454663470,-792.24,0.0003315,14]
[332699794,1721454663480,-500.0,0.0003315,14]
[332699795,1721454663489,-500.0,0.0003315,14]
[332699796,1721454663499,-500.0,0.0003315,14]
[332699797,1721454663509,-500.0,0.0003315,14]
[332699798,1721454663519,-907.05,0.0003315,14]
[332699799,1721454663528,-500.0,0.0003315,14]
[332699800,1721454663538,-500.0,0.0003315,14]
[332699801,1721454663548,-841.04,0.0003315,14]
[332699802,1721454663557,-500.0,0.0003315,14]
[332699803,1721454663567,-553.8,0.0003315,14]
[332699804,1721454663576,-500.0,0.0003315,14]
[332699805,1721454663587,-809.53,0.0003315,14]
[332699806,1721454663598,-500.0,0.0003315,14]
[332699807,1721454663607,-500.0,0.0003315,14]
[332699808,1721454663616,-975.87,0.0003315,14]
[332699809,1721454663626,-637.92,0.0003315,14]
[332699810,1721454663636,-500.0,0.0003315,14]
[332699811,1721454663645,-500.0,0.0003315,14]
[332699812,1721454663655,-568.56,0.0003315,14]
[332699813,1721454663664,-500.0,0.0003315,14]
[332699814,1721454663674,-500.0,0.0003315,14]
[332699815,1721454663684,-573.56846518,0.0003315,14]
[332699816,1721454663693,-500.0,0.0003315,14]
[332699817,1721454663703,-505.42883588,0.0003315,14]
[332699818,1721454663714,-701.51,0.0003315,14]
[332699819,1721454663724,-616.55,0.0003315,14]
[332699820,1721454663734,-500.0,0.0003315,14]
[332699821,1721454663743,-500.0,0.0003315,14]
[332699822,1721454663753,-500.0,0.0003315,14]
[332699823,1721454663763,-553.55,0.0003315,14]
[332699824,1721454663772,-500.0,0.0003315,14]
[332699825,1721454663782,-500.0,0.0003315,14]
[332699826,1721454663791,-322.61966438,0.0003315,14]
[332699827,1721454663800,-678.89,0.0003315,14]
[332699828,1721454663809,-500.0,0.0003315,14]
[332699829,1721454663819,-500.0,0.0003315,14]
[332699830,1721454663829,-519.86,0.0003315,14]
[332699831,1721454663838,-500.0,0.0003315,14]
[332699832,1721454663849,-1304.01,0.0003315,14]
[332699833,1721454663858,-860.37,0.0003315,14]
[332699834,1721454663869,-502.8177626,0.0003315,14]
[332699835,1721454663878,-500.0,0.0003315,14]
[332699836,1721454663888,-344.15,0.0003315,14]
[332699837,1721454663898,-500.0,0.0003315,14]
[332699838,1721454663907,-500.0,0.0003315,14]
[332699839,1721454663916,-585.34,0.0003315,14]
[332699840,1721454663926,-500.0,0.0003315,14]
[332699841,1721454663936,-500.0,0.0003315,14]
[332699842,1721454663947,-815.33,0.0003315,14]
[332699843,1721454663956,-540.87301048,0.0003315,14]
[332699844,1721454663966,-500.0,0.0003315,14]
[332699845,1721454663976,-1441.53,0.0003315,14]
[332699846,1721454663986,-500.0,0.0003315,14]
[332699847,1721454663995,-500.0,0.0003315,14]
[332699848,1721454664004,-500.0,0.0003315,14]
[332699849,1721454664013,-637.87164448,0.0003315,14]
[332699850,1721454664023,-698.02,0.0003315,14]
[332699851,1721454664033,-500.0,0.0003315,14]
[332699852,1721454664043,-500.0,0.0003315,14]
[332699853,1721454664052,-500.0,0.0003315,14]
[332699854,1721454664062,-1388.48,0.0003315,14]
[332699855,1721454664071,-500.0,0.0003315,14]
[332699856,1721454664080,-413.19857084,0.0003315,14]
[332699857,1721454664091,-500.0,0.0003315,14]
[332699858,1721454664100,-1150.04,0.0003315,14]
[332699859,1721454664109,-500.0,0.0003315,14]
[332699860,1721454664119,-500.0,0.0003315,14]
[332699861,1721454664129,-1233.13,0.0003315,7]
[332699862,1721454664138,-504.85433138,0.0003315,14]
[332699863,1721454664148,-500.0,0.0003315,14]
[332699864,1721454664157,-504.16939343,0.0003315,14]
[332699865,1721454664167,-500.0,0.0003315,14]
[332699866,1721454664176,-503.19578578,0.0003315,14]
[332699867,1721454664185,-916.05,0.0003315,14]
[332699868,1721454664197,-500.0,0.0003315,14]
[332699869,1721454664207,-522.19140528,0.0003315,14]
[332699870,1721454664216,-755.96,0.0003315,14]
[332699871,1721454664226,-500.0,0.0003315,14]
[332699872,1721454664235,-879.07,0.0003315,14]
[332699873,1721454664245,-502.70626539,0.0003315,14]
[332699874,1721454664254,-500.0,0.0003315,14]
[332699875,1721454664264,-500.0,0.0003315,14]
[332699876,1721454664274,-802.19,0.0003315,14]
[332699877,1721454664283,-1258.1,0.0003315,14]
[332699878,1721454664292,-504.29689367,0.0003315,14]
[332699879,1721454664302,-721.76,0.0003315,14]
[332699880,1721454664316,-500.0,0.0003315,14]
[332699881,1721454664326,-500.0,0.0003315,14]
[332699882,1721454664335,-500.0,0.0003315,14]
[332699883,1721454664344,-500.0,0.0003315,14]
[332699884,1721454664354,-575.57,0.0003315,14]
[332699885,1721454664364,-1507.75,0.0003315,14]
[332699886,1721454664373,-500.0,0.0003315,14]
[332699887,1721454664383,-945.44,0.0003315,14]
[332699888,1721454664392,-500.0,0.0003315,14]
[332699889,1721454664403,-500.0,0.0003315,2]
[332699890,1721454664412,-500.0,0.0003315,14]
[332699891,1721454664422,-472.37458907,0.0003315,14]
[332699892,1721454664431,-500.0,0.0003315,14]
[332699893,1721454664441,-500.0,0.0003315,14]
[332699894,1721454664450,-956.9,0.0003315,14]
[332699895,1721454664459,-500.0,0.0003315,14]
[332699896,1721454664468,-500.0,0.0003315,14]
[332699897,1721454664478,-500.0,0.0003315,14]
[332699898,1721454664487,-500.0,0.0003315,14]
[332699899,1721454664496,-2294.03,0.0003315,14]
[332699900,1721454664505,-500.0,0.0003315,14]
[332699901,1721454664515,-4051.96,0.0003315,14]
[332699902,1721454664524,-504.60816115,0.0003315,14]
[332699903,1721454664534,-1855.61,0.0003315,14]
[332699904,1721454664543,-500.0,0.0003315,14]
[332699905,1721454664553,-691.44,0.0003315,14]
[332699906,1721454664562,-500.0,0.0003315,14]
[332699907,1721454664572,-511.3656917,0.0003315,14]
[332699908,1721454664581,-500.0,0.0003315,14]
[332699909,1721454664591,-509.04286546,0.0003315,14]
[332699910,1721454664600,-626.18,0.0003315,14]
[332699911,1721454664609,-500.0,0.0003315,14]
[332699912,1721454664619,-500.0,0.0003315,14]
[332699913,1721454664628,-3548.1,0.0003315,14]
[332699914,1721454664637,-2137.09,0.0003315,14]
[332699915,1721454664646,-509.47,0.0003315,14]
[332699916,1721454664655,-2892.74,0.0003315,14]
[332699917,1721454664665,-500.0,0.0003315,14]
[332699918,1721454664674,-2204.46,0.0003315,14]
[332699919,1721454664683,-953.73,0.0003315,14]
[332699920,1721454664692,-1125.08,0.0003315,14]
[332699921,1721454664702,-500.0,0.0003315,14]
[332699922,1721454664711,-1011.8,0.0003315,14]
[332699923,1721454664720,-908.27,0.0003315,14]
[332699924,1721454664730,-500.0,0.0003315,14]
[332699925,1721454664739,-503.69339261,0.0003315,14]
[332699926,1721454664748,-504.35528051,0.0003315,14]
[332699927,1721454664757,-1227.28,0.0003315,14]
[332699928,1721454664768,-8132.78,0.0003315,14]
[332699929,1721454664777,-2035.89,0.0003315,14]
[332699930,1721454664787,-614.64,0.0003315,14]
[332699931,1721454664796,-505.18203638,0.0003315,14]
[332699932,1721454664805,-575.16,0.0003315,14]
[332699933,1721454664814,-1486.5,0.0003315,14]
[332699934,1721454664824,-1138.31,0.0003315,14]
[332699935,1721454664833,-500.0,0.0003315,14]
[332699936,1721454664843,-500.0,0.0003315,14]
[332699937,1721454664853,-503.39952161,0.0003315,14]
[332699938,1721454664863,-1562.52,0.0003315,14]
[332699939,1721454664872,-2099.47,0.0003315,14]
[332699940,1721454664881,-503.37458679,0.0003315,14]
[332699941,1721454664891,-416.41617458,0.0003315,14]
[332699942,1721454664900,-500.0,0.0003315,14]
[332699943,1721454664910,-2011.54,0.0003315,14]
[332699944,1721454664919,-4357.79,0.0003315,14]
[332699945,1721454664930,-2892.84,0.0003315,14]
[332699946,1721454664939,-1589.17,0.0003315,14]
[332699947,1721454664949,-500.0,0.0003315,14]
[332699948,1721454664959,-500.0,0.0003315,14]
[332699949,1721454664968,-488.09917213,0.0003315,14]
[332699950,1721454664978,-1172.33,0.0003315,14]
[332699951,1721454664987,-500.0,0.0003315,14]
[332699952,1721454664996,-1375.07,0.0003315,14]
[332699953,1721454665005,-1834.57,0.0003315,14]
[332699954,1721454665014,-13120.15,0.0003315,14]
[332699955,1721454665023,-500.0,0.0003315,14]
[332699956,1721454665033,-4131.25,0.0003315,14]
[332699957,1721454665042,-500.0,0.0003315,14]
[332699958,1721454665051,-500.0,0.0003315,14]
[332699959,1721454665060,-1248.89,0.0003315,14]
[332699960,1721454665070,-1789.82,0.0003315,14]
[332699961,1721454665079,-159.30130258,0.0003315,14]
[332699962,1721454665088,-701.08,0.0003315,14]
[332699963,1721454665099,-1061.38,0.0003315,14]
[332699964,1721454665108,-502.33766664,0.0003315,14]
[332699965,1721454665117,-2389.87,0.0003315,14]
[332699966,1721454665126,-2482.06,0.0003315,14]
[332699967,1721454665136,-500.0,0.0003315,14]
[332699968,1721454665146,-775.2,0.0003315,14]
[332699969,1721454665155,-816.59,0.0003315,14]
[332699970,1721454665164,-500.0,0.0003315,14]
[332699971,1721454665173,-655.03,0.0003315,14]
[332699972,1721454665183,-500.0,0.0003315,14]
[332699973,1721454665192,-10337.24,0.0003315,14]
[332699974,1721454665201,-500.0,0.0003315,14]
[332699975,1721454665210,-500.0,0.0003315,14]
[332699976,1721454665219,-2400.68,0.0003315,14]
[332699977,1721454665228,-2903.43,0.0003315,14]
[332699978,1721454665237,-500.0,0.0003315,14]
[332699979,1721454665246,-500.0,0.0003315,14]
[332699980,1721454665255,-871.73,0.0003315,14]
[332699981,1721454665265,-537.49,0.0003315,14]
[332699982,1721454665275,-500.0,0.0003315,14]
[332699983,1721454665285,-3440.18,0.0003315,14]
[332699984,1721454665295,-658.05,0.0003315,14]
[332699985,1721454665305,-500.0,0.0003315,14]
[332699986,1721454665319,-800.38,0.0003315,14]
[332699987,1721454665329,-500.0,0.0003315,14]
[332699988,1721454665339,-529.84,0.0003315,14]
[332699989,1721454665349,-789.85,0.0003315,14]
[332699990,1721454665359,-5938.68,0.0003315,14]
[332699991,1721454665368,-848.04,0.0003315,14]
[332699992,1721454665380,-500.0,0.0003315,14]
[332699993,1721454665391,-867.86,0.0003315,14]
[332699994,1721454665401,-735.16,0.0003315,14]
[332699995,1721454665412,-500.0,0.0003315,14]
[332699996,1721454665421,-1292.82,0.0003315,14]
[332699997,1721454665431,-500.0,0.0003315,14]
[332699998,1721454665439,-4015.29,0.0003315,14]
[332699999,1721454665448,-500.0,0.0003315,14]
[332700000,1721454665457,-500.0,0.0003315,14]
[332700001,1721454665466,-503.52796108,0.0003315,14]
[332700002,1721454665476,-5853.88,0.0003315,14]
[332700003,1721454665485,-500.0,0.0003315,14]
[332700004,1721454665494,-531.09,0.0003315,14]
[332700005,1721454665505,-502.76042237,0.0003315,14]
[332700006,1721454665514,-517.39044022,0.0003315,14]
[332700007,1721454665523,-2357.13,0.0003315,14]
[332700008,1721454665532,-669.25,0.0003315,14]
[332700009,1721454665541,-2902.56,0.0003315,14]
[332700010,1721454665551,-500.0,0.0003315,14]
[332700011,1721454665560,-164.56359056,0.0003315,14]
[332700012,1721454665569,-502.10951287,0.0003315,14]
[332700013,1721454665578,-5173.83,0.0003315,14]
[332700014,1721454665587,-502.08223095,0.0003315,14]
[332700015,1721454665598,-500.0,0.0003315,14]
[332700016,1721454665607,-508.69667106,0.0003315,14]
[332700017,1721454665616,-500.0,0.0003315,14]
[332700018,1721454665625,-500.0,0.0003315,14]
[332700019,1721454665634,-527.63,0.0003315,14]
[332700020,1721454665643,-4171.78,0.0003315,14]
[332700021,1721454665653,-500.0,0.0003315,14]
[332700022,1721454665662,-500.0,0.0003315,14]
[332700023,1721454665671,-1007.16,0.0003315,14]
[332700024,1721454665681,-500.0,0.0003315,14]
[332700025,1721454665690,-500.0,0.0003315,14]
[332700026,1721454665701,-500.0,0.0003315,14]
[332700027,1721454665711,-1175.99,0.0003315,14]
[332700028,1721454665722,-1086.49,0.0003315,14]
[332700029,1721454665735,-500.0,0.0003315,14]
[332700030,1721454665745,-5650.95,0.0003315,14]
[332700031,1721454665755,-500.0,0.0003315,14]
[332700032,1721454665765,-500.0,0.0003315,14]
[332700033,1721454665775,-1786.18,0.0003315,14]
[332700034,1721454665784,-1142.16,0.0003315,14]
[332700035,1721454665793,-500.0,0.0003315,14]
[332700036,1721454665804,-2100.12,0.0003315,14]
[332700037,1721454665815,-1501.2,0.0003315,14]
[332700038,1721454665933,-1938.55,0.0003315,14]
[332700039,1721454665943,-500.0,0.0003315,14]
[332700040,1721454665954,-500.0,0.0003315,14]
[332700041,1721454665963,-2226.11,0.0003315,14]
[332700042,1721454665973,-500.0,0.0003315,14]
[332700043,1721454665982,-1032.15,0.0003315,14]
[332700044,1721454665992,-521.36,0.0003315,14]
[332700045,1721454666001,-1134.15,0.0003315,14]
[332700046,1721454666011,-2533.76,0.0003315,14]